bitfinex-derivatives/quotes_BNBF0:USTF0_20241231
["timestamp","ask_amount","ask_price","bid_price","bid_amount"]
[1735679448736,0.26210377,702.71,701.63,0.28505052]
[1735679448936,0.26210377,702.7,701.63,0.28505052]
[1735679449138,0.26210377,702.69,701.63,0.28505052]
[1735679449338,0.26210377,702.8,701.63,0.28505052]
[1735679449540,0.26210377,702.79,701.63,0.28505052]
[1735679449737,0.26210377,702.78,701.63,0.28505052]
[1735679450038,0.26210377,702.77,701.63,0.28505052]
[1735679450235,0.26211406,702.8,701.63,0.28505052]
[1735679450539,0.26211406,702.79,701.63,0.28505052]
[1735679450837,0.26211406,702.78,701.63,0.28505052]
[1735679451138,0.26211406,702.77,701.63,0.28505052]
[1735679451337,0.26211406,702.76,701.63,0.28505052]
[1735679451538,0.26211406,702.75,701.63,0.28505052]
[1735679451738,0.26211406,702.74,701.63,0.28505052]
[1735679451936,0.26211406,702.73,701.63,0.28505052]
[1735679452133,0.26211406,702.8,701.63,0.28505052]
[1735679452337,1.48729072,702.72,701.63,0.28505052]
[1735679452540,0.26211406,702.71,701.63,0.28505052]
[1735679454939,0.26212982,702.7,701.63,0.28505052]
[1735679455135,0.26212982,702.69,701.63,0.28505052]
[1735679455337,0.26212982,702.68,701.63,0.28505052]
[1735679455641,0.26212982,702.67,701.63,0.28505052]
[1735679455841,0.26212982,702.66,701.63,0.28505052]
[1735679456144,0.26212982,702.65,701.63,0.28505052]
[1735679456342,0.26212982,702.64,701.63,0.28505052]
[1735679456533,0.26212982,702.63,701.63,0.28505052]
[1735679456738,0.26212982,702.62,701.63,0.28505052]
[1735679456936,0.26212982,702.61,701.63,0.28505052]
[1735679457135,1.48729072,702.72,701.63,0.28505052]
[1735679457337,0.26206851,702.71,701.63,0.28505052]
[1735679458136,0.26206595,702.7,701.63,0.28505052]
[1735679458337,1.48729072,702.72,701.63,0.28505052]
[1735679458338,0.26206595,702.69,701.63,0.28505052]
[1735679458642,0.26206595,702.68,701.63,0.28505052]
[1735679458843,0.26206595,702.67,701.63,0.28505052]
[1735679459045,0.26206595,702.66,701.63,0.28505052]
[1735679459241,0.26206595,702.65,701.63,0.28505052]
[1735679459441,1.48729072,702.72,701.63,0.28505052]
[1735679459442,0.26206595,702.64,701.63,0.28505052]
[1735679459744,0.26206595,702.63,701.63,0.28505052]
[1735679459943,1.48729072,702.72,701.63,0.28505052]
[1735679460142,0.26207364,702.71,701.63,0.28505052]
[1735679460440,1.48729072,702.72,701.63,0.28505052]
[1735679460441,0.26209771,702.7,701.63,0.28505052]
[1735679460638,1.48729072,702.72,701.63,0.28505052]
[1735679460639,0.26209771,702.69,701.63,0.28505052]
[1735679460838,0.26209771,702.68,701.63,0.28505052]
[1735679461040,0.26209771,702.67,701.63,0.28505052]
[1735679461243,1.48729072,702.72,701.63,0.28505052]
[1735679461546,0.26211021,702.71,701.63,0.28505052]
[1735679461941,0.26211706,702.7,701.63,0.28505052]
[1735679462138,0.26211706,702.69,701.63,0.28505052]
[1735679462342,0.26211706,702.68,701.63,0.28505052]
[1735679462643,1.48729072,702.72,701.63,0.28505052]
[1735679462844,0.26210323,702.71,701.63,0.28505052]
[1735679463144,1.48729072,702.72,701.63,0.28505052]
[1735679465151,0.2621001,702.71,701.63,0.28505052]
[1735679467150,1.05401488,702.66,701.63,0.28505052]
[1735679467748,0.26212751,702.65,701.63,0.28505052]
[1735679468147,1.05401488,702.66,701.63,0.28505052]
[1735679468349,1.48742845,702.64,701.63,0.28505052]
[1735679470253,0.26210579,702.63,701.63,0.28505052]
[1735679471854,1.05401488,702.5,701.63,0.28505052]
[1735679472054,0.26210579,702.49,701.63,0.28505052]
[1735679472249,1.05401488,702.5,701.63,0.28505052]
[1735679472454,0.26211126,702.49,701.63,0.28505052]
[1735679474455,0.26211126,702.48,701.63,0.28505052]
[1735679474657,0.26211126,702.47,701.63,0.28505052]
[1735679474954,1.05401488,702.51,701.63,0.28505052]
[1735679475151,1.48742845,702.64,701.63,0.28505052]
[1735679475152,1.05401488,702.46,701.63,0.28505052]
[1735679475658,0.26211388,702.45,701.63,0.28505052]
[1735679476058,0.26211388,702.44,701.63,0.28505052]
[1735679476255,1.05401488,702.48,701.63,0.28505052]
[1735679476455,0.2621173,702.47,701.63,0.28505052]
[1735679476858,1.05401488,702.45,701.63,0.28505052]
[1735679477152,0.2621173,702.44,701.63,0.28505052]
[1735679477458,1.05401488,702.45,701.63,0.28505052]
[1735679478960,1.05401488,702.53,701.63,0.28505052]
[1735679479663,1.05401488,702.61,701.63,0.28505052]
[1735679479861,0.26205672,702.6,701.63,0.28505052]
[1735679480862,0.26206187,702.59,701.63,0.28505052]
[1735679481061,0.26206187,702.58,701.63,0.28505052]
[1735679481262,1.05401488,702.62,701.63,0.28505052]
[1735679481464,0.26206469,702.61,701.63,0.28505052]
[1735679483058,0.26206118,702.6,701.63,0.28505052]
[1735679483256,0.26206118,702.59,701.63,0.28505052]
[1735679483464,0.26206118,702.58,701.63,0.28505052]
[1735679483761,0.26206118,702.57,701.63,0.28505052]
[1735679483963,0.26206118,702.56,701.63,0.28505052]
[1735679484162,2.54144333,702.64,701.63,0.28505052]
[1735679484163,0.26206118,702.55,701.63,0.28505052]
[1735679484355,0.26206118,702.54,701.63,0.28505052]
[1735679484556,0.26208767,702.53,701.63,0.28505052]
[1735679484758,2.54144333,702.64,701.63,0.28505052]
[1735679484961,1.05401488,702.6,701.63,0.28505052]
[1735679485160,0.26208859,702.59,701.63,0.28505052]
[1735679485561,0.26208334,702.58,701.63,0.28505052]
[1735679485763,0.26208334,702.57,701.63,0.28505052]
[1735679485960,0.26208334,702.56,701.63,0.28505052]
[1735679486161,0.26208334,702.55,701.63,0.28505052]
[1735679486359,0.26208334,702.54,701.63,0.28505052]
[1735679486666,1.05401488,702.6,701.63,0.28505052]
[1735679486966,0.26208244,702.59,701.63,0.28505052]
[1735679488761,1.05401488,702.6,701.63,0.28505052]
[1735679488963,0.2620861,702.59,701.63,0.28505052]
[1735679489460,0.2620861,702.58,701.63,0.28505052]
[1735679489665,0.2620861,702.57,701.63,0.28505052]
[1735679489860,0.2620861,702.56,701.63,0.28505052]
[1735679490062,1.48742845,702.64,701.63,0.28505052]
[1735679490063,0.2620861,702.55,701.63,0.28505052]
[1735679490262,0.2620861,702.54,701.63,0.28505052]
[1735679490570,0.2620861,702.53,701.63,0.28505052]
[1735679490768,1.05401488,702.6,701.63,0.28505052]
[1735679490970,0.2620927,702.59,701.63,0.28505052]
[1735679491169,1.05401488,702.58,701.63,0.28505052]
[1735679491365,0.2620927,702.57,701.63,0.28505052]
[1735679491968,1.74931985,702.57,701.63,0.28505052]
[1735679492165,0.2620927,702.56,701.63,0.28505052]
[1735679492367,1.31610758,702.56,701.63,0.28505052]
[1735679492571,0.2620927,702.55,701.63,0.28505052]
[1735679493372,1.31610758,702.55,701.63,0.28505052]
[1735679493670,0.26209706,702.54,701.63,0.28505052]
[1735679494479,1.31611194,702.54,701.63,0.28505052]
[1735679494777,0.26209706,702.53,701.63,0.28505052]
[1735679495475,1.05401488,702.43,701.63,0.28505052]
[1735679495774,0.26209706,702.42,701.63,0.28505052]
[1735679496374,1.05401488,702.38,701.63,0.28505052]
[1735679496576,0.26209706,702.37,701.63,0.28505052]
[1735679497972,0.26209706,702.36,701.63,0.28505052]
[1735679498273,0.26209706,702.35,701.63,0.28505052]
[1735679498469,1.05401488,702.4,701.63,0.28505052]
[1735679498671,0.262152,702.39,701.63,0.28505052]
[1735679499175,1.05401488,702.42,701.63,0.28505052]
[1735679499470,0.26215644,702.41,701.63,0.28505052]
[1735679500275,0.26215644,702.4,701.63,0.28505052]
[1735679500475,0.26215644,702.39,701.63,0.28505052]
[1735679500676,0.26215644,702.38,701.63,0.28505052]
[1735679500977,0.26215644,702.37,701.63,0.28505052]
[1735679501174,0.26215644,702.36,701.63,0.28505052]
[1735679501369,1.05401488,702.46,701.63,0.28505052]
[1735679501575,1.48722715,702.57,701.16,1.05954105]
[1735679501576,0.26215323,702.45,701.16,1.05954105]
[1735679501772,0.26215323,702.44,701.17,0.28523753]
[1735679501976,0.26215323,702.43,701.17,0.28523753]
[1735679502173,0.26215323,702.42,701.17,0.28523753]
[1735679502368,1.05401488,702.47,701.17,0.28523753]
[1735679502369,0.26215323,702.41,701.17,0.28523753]
[1735679502576,0.26215323,702.4,701.17,0.28523753]
[1735679502776,1.48756091,702.43,701.17,0.28523753]
[1735679502777,0.26215323,702.39,701.17,0.28523753]
[1735679502979,0.26215323,702.38,701.17,0.28523753]
[1735679503270,0.26215323,702.37,701.17,0.28523753]
[1735679503476,0.26215323,702.36,701.17,0.28523753]
[1735679503674,1.48756091,702.43,701.17,0.28523753]
[1735679503872,1.05401488,702.46,701.17,0.28523753]
[1735679504875,1.48750793,702.49,701.17,0.28523753]
[1735679505576,1.05401488,702.76,701.17,0.28523753]
[1735679505776,1.48754502,702.57,701.17,0.28523753]
[1735679506076,1.05401488,702.76,701.17,0.28523753]
[1735679506279,1.48750793,702.57,701.17,0.28523753]
[1735679506469,1.05401488,702.76,701.17,0.28523753]
[1735679506674,1.05401488,703.07,701.17,0.28523753]
[1735679506675,1.05401488,702.84,701.17,0.28523753]
[1735679507080,0.54666288,702.83,701.17,0.28523753]
[1735679507276,0.26209905,702.82,701.17,0.28523753]
[1735679507872,1.77189443,702.81,701.17,0.28523753]
[1735679508072,0.26209905,702.8,701.17,0.28523753]
[1735679508676,0.28458003,702.79,701.17,0.28523753]
[1735679508872,0.26209905,702.78,701.17,0.28523753]
[1735679509078,0.54668313,702.78,701.17,0.28523753]
[1735679509379,0.26212138,702.77,701.17,0.28523753]
[1735679512073,0.26213416,702.76,701.17,0.28523753]
[1735679512279,0.54673038,702.75,701.17,0.28523753]
[1735679512479,0.54673443,702.74,701.17,0.28523753]
[1735679512679,0.546741,702.73,701.17,0.28523753]
[1735679512876,0.26213668,702.72,701.17,0.28523753]
[1735679513079,0.28461242,702.71,701.17,0.28523753]
[1735679513482,0.26213507,702.7,701.17,0.28523753]
[1735679513876,0.54675154,702.7,701.17,0.28523753]
[1735679514083,0.26213507,702.69,701.17,0.28523753]
[1735679514276,0.28462458,702.68,701.17,0.28523753]
[1735679514481,0.26213507,702.67,701.17,0.28523753]
[1735679514683,1.05401488,702.59,701.17,0.28523753]
[1735679514883,0.26213507,702.58,701.17,0.28523753]
[1735679515583,1.31614995,702.58,701.17,0.28523753]
[1735679515778,0.26213507,702.57,701.17,0.28523753]
[1735679516481,1.05401488,702.58,701.17,0.28523753]
[1735679516979,1.05401488,702.64,701.17,0.28523753]
[1735679517177,0.26212091,702.63,701.17,0.28523753]
[1735679517379,0.26211886,702.63,701.17,0.28523753]
[1735679518080,1.48742845,702.62,701.17,0.28523753]
[1735679518381,0.26211886,702.61,701.17,0.28523753]
[1735679518580,1.48742845,702.62,701.17,0.28523753]
[1735679519383,1.48742845,702.62,701.17,1.34477858]
[1735679520781,0.26210498,702.61,701.17,1.34477858]
[1735679521179,1.31611986,702.61,701.25,1.05954105]
[1735679521385,0.26210498,702.6,701.25,1.05954105]
[1735679521680,1.05401488,702.61,701.26,0.28520092]
[1735679522081,0.26210582,702.6,701.26,0.28520092]
[1735679522286,0.26210582,702.6,701.26,1.34474197]
[1735679523285,1.05401488,702.58,701.26,0.28520092]
[1735679523487,0.26210582,702.57,701.26,0.28520092]
[1735679524387,0.26211976,702.56,701.26,0.28520092]
[1735679524586,1.05401488,702.52,701.26,0.28520092]
[1735679524786,0.26211976,702.51,701.26,0.28520092]
[1735679526688,1.05401488,702.45,701.27,1.05954105]
[1735679526891,0.26213329,702.44,701.27,1.05954105]
[1735679527581,1.05401488,702.45,701.28,1.05954105]
[1735679527782,0.26213674,702.44,701.28,1.05954105]
[1735679529589,1.05401488,702.45,701.3,1.05954105]
[1735679530492,1.05401488,702.58,701.26,0.28520092]
[1735679530691,1.48741256,702.49,701.26,0.28520092]
[1735679530896,1.05401488,702.58,701.26,0.28520092]
[1735679531085,2.5415599,702.58,701.26,0.28520092]
[1735679531690,1.48754502,702.58,701.26,0.28520092]
[1735679534397,0.26215128,702.57,701.26,0.28520092]
[1735679534897,0.2621522,702.56,701.26,0.28520092]
[1735679535094,0.2621522,702.55,701.26,0.28520092]
[1735679535294,0.2621522,702.54,701.26,0.28520092]
[1735679535496,0.26215365,702.53,701.26,0.28520092]
[1735679535698,1.48754502,702.58,701.26,0.28520092]
[1735679535699,0.26215365,702.52,701.26,0.28520092]
[1735679535898,0.26215365,702.51,701.26,0.28520092]
[1735679536096,1.48754502,702.58,701.26,0.28520092]
[1735679536294,0.26214601,702.57,701.26,0.28520092]
[1735679536599,1.05401488,702.49,701.26,0.28520092]
[1735679537201,1.05401488,702.5,701.26,0.28520092]
[1735679538201,1.48754502,702.58,701.26,0.28520092]
[1735679538202,1.05401488,702.51,701.26,0.28520092]
[1735679539006,1.05401488,702.48,701.26,0.28520092]
[1735679541400,1.4876457,702.47,701.26,0.28520092]
[1735679543209,0.26215622,702.46,701.26,0.28520092]
[1735679543410,1.4876457,702.47,701.26,0.28520092]
[1735679543713,0.26214998,702.46,701.26,0.28520092]
[1735679544504,1.05401488,702.4,701.26,0.28520092]
[1735679544704,0.26215161,702.39,701.26,0.28520092]
[1735679544909,1.05401488,702.4,701.26,0.28520092]
[1735679545306,1.05401488,702.41,701.26,0.28520092]
[1735679545512,0.26215575,702.4,701.26,0.28520092]
[1735679546110,1.05401488,702.41,701.26,0.28520092]
[1735679547415,1.05401488,702.42,701.26,0.28520092]
[1735679548714,1.05401488,702.48,701.31,1.05954105]
[1735679548914,1.05401488,702.48,701.32,0.28517652]
[1735679549615,1.48746024,702.53,701.32,0.28517652]
[1735679549616,1.05401488,702.51,701.32,1.34471757]
[1735679549809,0.26211164,702.5,701.32,1.34471757]
[1735679550614,1.05401488,702.51,701.32,1.34471757]
[1735679550815,1.05401488,702.51,701.32,0.28517652]
[1735679551317,0.26212102,702.5,701.32,0.28517652]
[1735679553013,1.05401488,702.49,701.32,0.28517652]
[1735679554018,1.05401488,702.51,701.32,0.28517652]
[1735679554218,0.26211229,702.5,701.32,0.28517652]
[1735679555116,1.05401488,702.48,701.32,0.28517652]
[1735679556117,1.05401488,702.49,701.32,0.28517652]
[1735679557021,1.05401488,702.5,701.33,1.05954105]
[1735679557320,1.05401488,702.5,701.34,0.28516839]
[1735679557918,1.05401488,702.52,701.35,1.05954105]
[1735679558116,1.05401488,702.52,701.35,1.34470537]
[1735679558117,0.26210296,702.51,701.35,1.34470537]
[1735679558321,1.05401488,702.52,701.35,1.34470537]
[1735679558622,0.26210606,702.51,701.35,1.34470537]
[1735679558828,1.05401488,702.52,701.35,1.34470537]
[1735679559023,1.05401488,702.54,701.37,1.05954105]
[1735679559523,0.26209557,702.53,701.37,1.05954105]
[1735679560318,0.26209557,702.53,701.36,1.05954105]
[1735679560518,0.26209557,702.52,701.36,1.05954105]
[1735679560722,0.26209557,702.51,701.36,1.05954105]
[1735679560922,0.26209557,702.5,701.36,1.05954105]
[1735679561123,1.05401488,702.55,701.36,1.05954105]
[1735679561423,1.05401488,702.55,701.35,0.28516432]
[1735679561424,1.05401488,702.53,701.39,1.05954105]
[1735679561623,0.26209788,702.52,701.39,1.05954105]
[1735679562117,0.26209788,702.52,701.35,0.28516432]
[1735679562118,1.31611276,702.52,701.37,1.05954105]
[1735679562317,0.26209788,702.51,701.37,1.05954105]
[1735679564126,0.26209886,702.5,701.37,1.05954105]
[1735679564320,1.05401488,702.52,701.37,1.05954105]
[1735679564524,0.26209392,702.51,701.37,1.05954105]
[1735679564723,1.05401488,702.53,701.37,1.05954105]
[1735679564923,0.26208759,702.52,701.37,1.05954105]
[1735679565320,0.26208759,702.52,701.38,1.05954105]
[1735679565524,0.26208759,702.51,701.38,1.05954105]
[1735679565724,0.26208759,702.5,701.38,1.05954105]
[1735679565923,0.26208759,702.49,701.38,1.05954105]
[1735679566121,1.05401488,702.55,701.38,1.05954105]
[1735679566327,0.26210056,702.54,701.38,1.05954105]
[1735679566526,0.26210056,702.54,701.37,1.05954105]
[1735679566829,0.26209974,702.53,701.37,1.05954105]
[1735679567028,0.26209974,702.52,701.37,1.05954105]
[1735679567229,0.26209974,702.52,701.35,0.28516432]
[1735679567230,0.26209974,702.51,701.36,1.05954105]
[1735679567429,0.26209995,702.5,701.36,1.05954105]
[1735679567730,0.26209995,702.49,701.36,1.05954105]
[1735679567929,0.26209995,702.48,701.36,1.05954105]
[1735679568127,0.26209995,702.47,701.36,1.05954105]
[1735679568331,0.26209995,702.46,701.37,0.28515619]
[1735679568532,1.05401488,702.54,701.37,0.28515619]
[1735679568835,0.2620952,702.53,701.37,0.28515619]
[1735679571233,0.2620952,702.52,701.37,0.28515619]
[1735679571433,0.2620952,702.51,701.37,0.28515619]
[1735679571731,0.2620952,702.5,701.37,0.28515619]
[1735679571926,1.05401488,702.54,701.37,0.28515619]
[1735679571927,0.2620952,702.49,701.37,0.28515619]
[1735679572131,0.2620952,702.48,701.37,0.28515619]
[1735679572332,1.05401488,702.54,701.37,0.28515619]
[1735679572633,0.26210014,702.53,701.37,0.28515619]
[1735679574434,0.26210014,702.53,701.37,1.34469724]
[1735679574633,1.05401488,702.54,701.37,1.34469724]
[1735679574834,0.26208029,702.53,701.37,1.34469724]
[1735679575534,0.262086,702.52,701.42,1.05954105]
[1735679575733,2.5413056,702.58,701.42,1.05954105]
[1735679575926,0.26208601,702.57,701.42,1.05954105]
[1735679576635,1.05401488,702.56,701.41,1.05954105]
[1735679576837,0.26208601,702.55,701.41,1.34468098]
[1735679577531,0.26209168,702.54,701.41,1.34468098]
[1735679577732,1.48729072,702.58,701.41,1.34468098]
[1735679577733,0.26209168,702.53,701.41,1.34468098]
[1735679577929,1.05401488,702.57,701.41,1.34468098]
[1735679578129,0.26208491,702.56,701.41,1.34468098]
[1735679578331,1.31609979,702.56,701.41,1.34468098]
[1735679578635,0.26208491,702.55,701.41,1.34468098]
[1735679579336,1.31609979,702.55,701.43,1.05954105]
[1735679579631,0.26208491,702.54,701.43,1.05954105]
[1735679580537,0.26208491,702.54,701.41,0.28513993]
[1735679580538,1.05401488,702.5,701.41,0.28513993]
[1735679580730,0.26210121,702.49,701.41,0.28513993]
[1735679581631,1.05401488,702.48,701.42,1.05954105]
[1735679581829,0.26211104,702.47,701.42,1.05954105]
[1735679582031,1.05401488,702.48,701.42,1.05954105]
[1735679582336,0.26211192,702.47,701.42,1.05954105]
[1735679582638,1.05401488,702.43,701.41,1.34468098]
[1735679582837,0.2621228,702.42,701.41,1.34468098]
[1735679583937,1.05401488,702.4,701.41,0.28513993]
[1735679584937,1.05401488,702.43,701.41,1.34468098]
[1735679585836,1.05401488,702.47,701.45,1.05954105]
[1735679586734,1.05401488,702.46,701.44,1.05954105]
[1735679587536,1.05401488,702.48,701.46,1.05954105]
[1735679588932,1.05401488,702.48,701.41,0.28513993]
[1735679588933,1.05401488,702.48,701.47,1.05954105]
[1735679590139,1.05401488,702.46,701.46,1.05954105]
[1735679591139,1.05401488,702.49,701.5,1.05954105]
[1735679592039,1.48728012,702.61,701.48,1.05954105]
[1735679592040,1.05401488,702.47,701.48,1.05954105]
[1735679594141,1.05401488,702.46,701.47,1.05954105]
[1735679595042,1.05401488,702.48,701.49,1.05954105]
[1735679596042,1.05401488,702.46,701.47,1.05954105]
[1735679597542,1.05401488,702.46,701.41,0.28513993]
[1735679597543,1.05401488,702.44,701.44,1.05954105]
[1735679598843,1.05401488,702.44,701.41,0.28513993]
[1735679598844,1.05401488,702.44,701.45,1.05954105]
[1735679599639,1.05401488,702.47,701.47,1.05954105]
[1735679600443,1.05401488,702.45,701.45,1.05954105]
[1735679601641,1.05401488,702.44,701.45,1.05954105]
[1735679605747,1.48728012,702.61,701.49,1.05954105]
[1735679605748,1.05401488,702.48,701.49,1.05954105]
[1735679607648,1.05401488,702.5,701.5,1.05954105]
[1735679608847,1.05401488,702.5,701.41,1.34468098]
[1735679608848,1.05401488,702.51,701.51,1.05954105]
[1735679609645,1.48728012,702.61,701.41,0.28513993]
[1735679609646,1.05401488,702.53,701.52,1.05954105]
[1735679610749,1.05401488,702.53,701.51,1.05954105]
[1735679611645,1.48728012,702.61,701.51,1.05954105]
[1735679611646,1.05401488,702.54,701.51,1.05954105]
[1735679612351,0.2620875,702.53,701.51,1.05954105]
[1735679612545,1.05401488,702.54,701.51,1.05954105]
[1735679612747,1.05401488,702.54,701.5,1.05954105]
[1735679614452,0.26209206,702.53,701.5,1.05954105]
[1735679615044,1.48724834,702.52,701.5,1.05954105]
[1735679615246,0.26209206,702.51,701.5,1.05954105]
[1735679615845,1.05401488,702.43,701.41,0.28513993]
[1735679617145,0.26215835,702.42,701.41,0.28513993]
[1735679618448,1.05401488,702.37,701.41,0.28513993]
[1735679618648,0.26215835,702.36,701.41,0.28513993]
[1735679618849,1.05401488,702.37,701.41,0.28513993]
[1735679619451,0.26215386,702.36,701.41,0.28513993]
[1735679619648,1.05401488,702.39,701.41,0.28513993]
[1735679620256,1.05401488,702.42,701.41,0.28513993]
[1735679620551,0.26215555,702.41,701.41,0.28513993]
[1735679621454,1.05401488,702.42,701.41,0.28513993]
[1735679621648,0.2621539,702.41,701.41,0.28513993]
[1735679622054,1.05401488,702.45,701.41,0.28513993]
[1735679622255,0.26215101,702.44,701.41,0.28513993]
[1735679623052,0.26215101,702.43,701.41,0.28513993]
[1735679623253,0.26215101,702.42,701.41,0.28513993]
[1735679623453,0.26215101,702.41,701.41,0.28513993]
[1735679623651,0.26215101,702.4,701.41,0.28513993]
[1735679623850,1.05401488,702.47,701.41,0.28513993]
[1735679623851,0.26215101,702.39,701.41,0.28513993]
[1735679624051,0.26215101,702.38,701.41,0.28513993]
[1735679624250,1.05401488,702.47,701.41,0.28513993]
[1735679624451,0.2621691,702.46,701.41,0.28513993]
[1735679626859,0.2621691,702.45,701.41,0.28513993]
[1735679627056,0.2621691,702.44,701.41,0.28513993]
[1735679627360,0.2621691,702.43,701.41,0.28513993]
[1735679627657,0.2621691,702.42,701.41,0.28513993]
[1735679629454,0.26216865,702.41,701.41,0.28513993]
[1735679629655,0.26216865,702.4,701.41,0.28513993]
[1735679629851,0.26216865,702.39,701.41,0.28513993]
[1735679630056,0.26216865,702.38,701.41,0.28513993]
[1735679630252,0.26216421,702.37,701.41,0.28513993]
[1735679630457,0.26216421,702.36,701.41,0.28513993]
[1735679630754,0.26216421,702.35,701.41,0.28513993]
[1735679630957,0.26216421,702.34,701.41,0.28513993]
[1735679631158,0.26216421,702.33,701.41,0.28513993]
[1735679631354,0.26216421,702.32,701.41,0.28513993]
[1735679631553,1.4876245,702.43,701.41,0.28513993]
[1735679631758,0.26216989,702.42,701.41,0.28513993]
[1735679632359,0.26216989,702.41,701.41,0.28513993]
[1735679632564,0.26216989,702.4,701.41,0.28513993]
[1735679632763,0.26216989,702.39,701.41,0.28513993]
[1735679633061,0.26216989,702.38,701.41,0.28513993]
[1735679633256,1.4876245,702.43,701.41,0.28513993]
[1735679633562,0.26217424,702.42,701.41,0.28513993]
[1735679634661,1.4876245,702.43,701.41,0.28513993]
[1735679634861,0.2621709,702.42,701.41,0.28513993]
[1735679637458,0.26217583,702.41,701.41,0.28513993]
[1735679637660,0.26217583,702.4,701.41,0.28513993]
[1735679637858,0.26217583,702.39,701.41,0.28513993]
[1735679638060,1.4876245,702.43,701.41,0.28513993]
[1735679638258,0.26217853,702.42,701.41,0.28513993]
[1735679642067,0.26217788,702.41,701.41,0.28513993]
[1735679642264,0.26217274,702.4,701.41,0.28513993]
[1735679642468,0.26217274,702.39,701.41,0.28513993]
[1735679642767,0.26217274,702.38,701.41,0.28513993]
[1735679642967,0.26217274,702.37,701.41,0.28513993]
[1735679643168,0.26217274,702.36,701.41,0.28513993]
[1735679643371,0.26218059,702.35,701.41,0.28513993]
[1735679643570,1.05401488,702.53,701.41,0.28513993]
[1735679643760,0.28463268,702.66,701.41,0.28513993]
[1735679643761,1.487757,702.35,701.41,0.28513993]
[1735679643962,0.26218611,702.34,701.41,0.28513993]
[1735679644167,0.26218611,702.33,701.41,0.28513993]
[1735679644368,1.4877835,702.34,701.41,0.28513993]
[1735679648079,1.05401488,702.45,701.41,0.28513993]
[1735679648280,1.4877676,702.43,701.41,0.28513993]
[1735679648475,0.26217517,702.42,701.41,0.28513993]
[1735679649783,1.31619005,702.42,701.41,0.28513993]
[1735679649981,0.26218451,702.41,701.41,0.28513993]
[1735679650683,1.05401488,702.37,701.41,0.28513993]
[1735679651780,1.4877676,702.43,701.41,0.28513993]
[1735679651781,1.05401488,702.35,701.41,0.28513993]
[1735679652485,1.05401488,702.33,701.41,0.28513993]
[1735679653580,1.04882134,702.33,701.41,0.28513993]
[1735679654181,1.04882134,702.33,701.1,1.05954105]
[1735679655087,1.4877676,702.43,701.02,1.05954105]
[1735679655378,0.2621917,702.42,701.03,0.28529449]
[1735679656185,0.2621917,702.42,701.03,1.34483554]
[1735679657984,0.26220276,702.41,701.03,1.34483554]
[1735679658186,0.26220276,702.4,701.03,0.28529449]
[1735679658484,0.26220276,702.39,701.03,0.28529449]
[1735679658685,0.26220276,702.38,701.03,0.28529449]
[1735679658883,0.26220276,702.37,701.03,0.28529449]
[1735679659085,0.26220276,702.36,701.04,1.05954105]
[1735679659382,0.26220276,702.35,701.05,0.28528635]
[1735679659580,0.26220276,702.34,701.05,0.28528635]
[1735679659785,1.4877517,702.35,701.05,0.28528635]
[1735679660088,0.26219208,702.34,701.05,0.28528635]
[1735679660283,1.4877517,702.35,701.05,0.28528635]
[1735679660484,1.4877517,702.35,701.09,1.05954105]
[1735679661586,1.4877517,702.35,701.12,1.05954105]
[1735679661786,0.26219499,702.34,701.12,1.05954105]
[1735679662586,1.4877517,702.35,701.12,1.05954105]
[1735679662788,1.4877517,702.35,701.09,1.05954105]
[1735679663189,1.4877517,702.35,701.09,1.34481112]
[1735679663384,1.4877517,702.35,701.1,0.28526601]
[1735679663886,1.05401488,702.54,701.12,1.05954105]
[1735679664082,0.26216288,702.53,701.13,0.2852538]
[1735679664284,1.4876245,702.5,701.13,0.2852538]
[1735679664485,0.26216288,702.49,701.13,0.2852538]
[1735679665293,0.26216288,702.49,701.2,1.05954105]
[1735679665484,0.26216288,702.49,701.2,1.34476637]
[1735679665886,0.26216494,702.48,701.2,1.34476637]
[1735679666090,0.26216494,702.47,701.2,1.34476637]
[1735679666288,0.26216494,702.46,701.2,1.34476637]
[1735679666486,0.26216494,702.45,701.2,1.34476637]
[1735679666791,0.26216494,702.44,701.2,1.34476637]
[1735679666989,1.4876245,702.5,701.2,1.34476637]
[1735679666990,0.26216494,702.43,701.2,1.34476637]
[1735679667194,0.26216494,702.42,701.2,1.34476637]
[1735679667492,0.26216494,702.41,701.21,1.05954105]
[1735679667693,0.26216494,702.4,701.21,1.05954105]
[1735679667893,0.26216494,702.39,701.21,1.05954105]
[1735679668094,0.26216494,702.38,701.21,1.05954105]
[1735679668394,1.4876245,702.5,701.21,1.05954105]
[1735679668587,0.26216299,702.49,701.21,1.05954105]
[1735679669195,0.26216408,702.48,701.21,1.05954105]
[1735679669390,0.26216408,702.47,701.21,1.05954105]
[1735679669589,0.26216408,702.46,701.21,1.05954105]
[1735679669794,0.26216408,702.45,701.21,1.05954105]
[1735679670094,0.26216408,702.44,701.21,1.05954105]
[1735679670294,0.26216408,702.43,701.21,1.05954105]
[1735679670494,0.26216408,702.42,701.2,0.28522532]
[1735679670694,0.26216408,702.41,701.2,0.28522532]
[1735679670890,0.26216408,702.4,701.2,0.28522532]
[1735679671091,0.26216408,702.39,701.2,0.28522532]
[1735679671295,0.26216792,702.38,701.2,0.28522532]
[1735679671496,0.26216792,702.37,701.2,0.28522532]
[1735679671697,1.4876245,702.5,701.2,0.28522532]
[1735679671896,0.26217088,702.49,701.2,0.28522532]